lending/lending_fUSD_20240604
["ID","MTS","AMOUNT","RATE_DAILY","PERIOD"]
[328531968,1717499432511,-1400.0,0.00024532,2]
[328531969,1717499432520,-500.0,0.00024532,2]
[328531970,1717499432529,-500.0,0.00024532,2]
[328531971,1717499432539,-197.65,0.00024537,2]
[328531972,1717499432548,-800.0,0.00024548,2]
[328531973,1717499432558,-300.0,0.0002455,2]
[328531974,1717499432567,-204.54,0.00024579,2]
[328531975,1717499432576,-600.0,0.00024606,2]
[328531976,1717499432585,-204.54,0.00024647,2]
[328531977,1717499432595,-234.358,0.0002467,2]
[328531978,1717499432604,-204.54,0.00024714,2]
[328531979,1717499432614,-2218.0249,0.00024767,10]
[328531980,1717499432623,-204.54,0.00024782,2]
[328531981,1717499432632,-500.0,0.00024806,2]
[328531982,1717499432641,-204.54,0.00024849,2]
[328531983,1717499432651,-204.54,0.00024917,2]
[328531984,1717499432662,-1734.76,0.00024941,2]
[328531985,1717499432671,-204.54,0.00024984,2]
[328531986,1717499432680,-170.0,0.00025,2]
[328531987,1717499432689,-705.76957178,0.00025,2]
[328531988,1717499432698,-595.3,0.00025041,2]
[328531989,1717499432708,-410.86,0.00025041,2]
[328531990,1717499432718,-204.54,0.00025051,2]
[328531991,1717499432728,-1300.0,0.0002508,2]
[328531992,1717499432739,-1400.0,0.0002508,2]
[328531993,1717499432748,-800.0,0.00025096,2]
[328531994,1717499432758,-204.54,0.00025119,2]
[328531995,1717499432769,-800.0,0.00025123,2]
[328531996,1717499432780,-204.54,0.00025186,2]
[328531997,1717499432790,-204.54,0.00025254,2]
[328531998,1717499432799,-204.54,0.00025321,2]
[328531999,1717499432809,-204.54,0.00025389,2]
[328532000,1717499432818,-204.54,0.00025456,2]
[328532001,1717499432827,-204.54,0.00025523,2]
[328532002,1717499432837,-204.54,0.00025591,2]
[328532003,1717499432846,-1400.0,0.00025628,2]
[328532004,1717499432856,-1300.0,0.00025628,2]
[328532005,1717499432865,-500.0,0.00025628,2]
[328532006,1717499432874,-500.0,0.00025628,2]
[328532007,1717499432883,-204.54,0.00025658,2]
[328532008,1717499432893,-204.54,0.00025726,2]
[328532009,1717499432904,-204.54,0.00025793,2]
[328532010,1717499432917,-204.54,0.00025861,2]
[328532011,1717499432927,-500.0,0.00025902,2]
[328532012,1717499432939,-846.2,0.00025923,2]
[328532013,1717499432950,-400.0,0.00025964,2]
[328532014,1717499432961,-300.0,0.00026084,2]
[328532015,1717499432970,-1300.0,0.00026176,2]
[328532016,1717499432980,-345.38258781,0.00026723,2]
[328532017,1717499432993,-1400.0,0.00026724,2]
[328532018,1717499433004,-505.81932521,0.00026724,2]
[328532019,1717499433014,-500.0,0.00026724,2]
[328532020,1717499433023,-500.0,0.00026998,2]
[328532021,1717499433033,-150.0,0.00027,2]
[328532022,1717499433043,-1300.0,0.00027272,2]
[328532023,1717499433052,-410.86,0.00027305,2]
[328532024,1717499433062,-693.739,0.00027344,2]
[328532025,1717499433071,-696.47,0.00027397,10]
[328532026,1717499433081,-580.39,0.00027397,10]
[328532027,1717499433090,-300.24475998,0.00027619,2]
[328532028,1717499433099,-150.0,0.0002767,2]
[328532029,1717499433108,-1734.76,0.00027681,2]
[328532030,1717499433117,-600.0,0.00027682,2]
[328532031,1717499433126,-3888.47581681,0.0002772,2]
[328532032,1717499433136,-1000.0,0.000278,2]
[328532033,1717499433145,-1400.0,0.0002782,2]
[328532034,1717499433156,-500.0,0.0002782,2]
[328532035,1717499433165,-3888.47581676,0.00027962,2]
[328532036,1717499433174,-468.5538,0.00027994,2]
[328532037,1717499433183,-500.0,0.00028094,2]
[328532038,1717499433192,-3888.47581676,0.00028204,2]
[328532039,1717499433201,-1300.0,0.00028368,2]
[328532040,1717499433211,-1000.0,0.000284,2]
[328532041,1717499433220,-3888.47581676,0.00028447,2]
[328532042,1717499433229,-800.0,0.00028603,2]
[328532043,1717499433238,-3888.47581676,0.00028689,2]
[328532044,1717499433247,-2378.0124,0.000289,2]
[328532045,1717499433258,-1400.0,0.00028916,2]
[328532046,1717499433267,-500.0,0.00028916,2]
[328532047,1717499433276,-3888.47581676,0.00028931,2]
[328532048,1717499433285,-160.03,0.0002899,2]
[328532049,1717499433294,-98522.09223337,0.00029,2]
[328532050,1717499433303,-12700.67906269,0.00029,3]
[328532051,1717499433312,-3888.47581676,0.00029173,15]
[328532052,1717499433322,-500.0,0.0002919,2]
[328532053,1717499433331,-400.0,0.0002921,2]
[328532054,1717499433341,-168.95038572,0.00029246,2]
[328532056,1717499437777,-483.66,0.00028194,10]
[328532059,1717499437787,-10.086,0.00029246,2]
[328532077,1717499437959,-10.40234523,0.00029246,2]
[328532078,1717499437968,-500.0,0.00029305,2]
[328532079,1717499437978,-200.0,0.00029305,2]
[328532080,1717499437988,-177.41972961,0.0002934,2]
[328532081,1717499437999,-353.25647791,0.00029355,2]
[328532082,1717499438009,-60.54248363,0.00029357,5]
[328532083,1717499438022,-542.45751637,0.00029357,5]
[328532084,1717499438031,-166.01645137,0.00029359,2]
[328532085,1717499438040,-353.25647791,0.00029365,2]
[328532086,1717499438050,-39.65051822,0.00029416,15]
[328532087,1717499438061,-3848.82529854,0.00029416,15]
[328532088,1717499438071,-363.529057,0.00029421,2]
[328532089,1717499438080,-153.42536742,0.00029429,2]
[328532090,1717499438090,-163.64154959,0.00029464,2]
[328532091,1717499438099,-1300.0,0.00029464,2]
[328532092,1717499438108,-153.42536742,0.00029471,2]
[328532093,1717499438118,-452.14783163,0.00029489,2]
[328532094,1717499438127,-201.89046284,0.00029489,2]
[328532095,1717499438137,-4880.2431,0.00029489,2]
[328532096,1717499438146,-345.0,0.000295,2]
[328532099,1717499438159,-160.0,0.000295,2]
[328532101,1717499438169,-150.0,0.000295,6]
[328532102,1717499438178,-168.5177974,0.00029518,2]
[328532104,1717499438188,-166.7289316,0.0002952,2]
[328532105,1717499438198,-153.42536742,0.00029524,2]
[328532106,1717499438208,-155.22722341,0.00029529,2]
[328532107,1717499438218,-363.529057,0.00029531,2]
[328532108,1717499438227,-363.529057,0.00029532,2]
[328532109,1717499438237,-570.50620854,0.00029541,2]
[328532110,1717499438247,-17344.5952225,0.00029545,6]
[328532111,1717499438256,-452.14783162,0.00029548,2]
[328532112,1717499438266,-166.7289316,0.00029553,2]
[328532113,1717499438277,-410.86,0.00029569,2]
[328532114,1717499438287,-188.47964545,0.00029579,2]
[328532115,1717499438297,-179.762654,0.00029589,7]
[328532116,1717499438306,-500.0,0.00029589,6]
[328532117,1717499438315,-154.7027009,0.00029589,6]
[328532118,1717499438325,-151.0,0.00029589,7]
[328532119,1717499438334,-298.77190771,0.00029589,6]
[328532120,1717499438344,-500.0,0.00029589,6]
[328532121,1717499438353,-151.0,0.00029589,7]
[328532122,1717499438363,-500.0,0.00029589,6]
[328532123,1717499438372,-154.0,0.00029589,6]
[328532124,1717499438382,-151.0,0.00029589,7]
[328532125,1717499438392,-500.0,0.00029589,6]
[328532126,1717499438401,-500.0,0.00029589,6]
[328532127,1717499438412,-500.0,0.00029589,6]
[328532128,1717499438422,-500.0,0.00029589,6]
[328532129,1717499438431,-500.0,0.00029589,6]
[328532130,1717499438440,-500.0,0.00029589,6]
[328532131,1717499438450,-500.0,0.00029589,6]
[328532132,1717499438459,-500.0,0.00029589,6]
[328532133,1717499438468,-500.0,0.00029589,6]
[328532134,1717499438478,-500.0,0.00029589,6]
[328532135,1717499438488,-500.0,0.00029589,6]
[328532136,1717499438497,-500.0,0.00029589,6]
[328532137,1717499438508,-500.0,0.00029589,6]
[328532138,1717499438517,-500.0,0.00029589,6]
[328532139,1717499438527,-500.0,0.00029589,6]
[328532140,1717499438536,-500.0,0.00029589,6]
[328532141,1717499438545,-513.77976397,0.00029589,6]
[328532142,1717499438555,-500.0,0.00029589,6]
[328532143,1717499438565,-500.0,0.00029589,6]
[328532144,1717499438574,-500.0,0.00029589,6]
[328532145,1717499438584,-500.0,0.00029589,6]
[328532146,1717499438594,-500.0,0.00029589,6]
[328532147,1717499438603,-500.0,0.00029589,6]
[328532148,1717499438745,-500.0,0.00029589,6]
[328532149,1717499438791,-500.0,0.00029589,6]
[328532150,1717499438801,-500.0,0.00029589,6]
[328532151,1717499438810,-500.0,0.00029589,6]
[328532152,1717499438819,-500.0,0.00029589,6]
[328532153,1717499438828,-509.17640758,0.00029589,6]
[328532154,1717499438838,-500.0,0.00029589,6]
[328532155,1717499438847,-500.0,0.00029589,6]
[328532156,1717499438856,-500.0,0.00029589,6]
[328532157,1717499438866,-500.0,0.00029589,6]
[328532158,1717499438875,-500.0,0.00029589,6]
[328532159,1717499438884,-500.0,0.00029589,6]
[328532160,1717499438894,-500.0,0.00029589,6]
[328532161,1717499438905,-500.0,0.00029589,6]
[328532162,1717499438919,-500.0,0.00029589,6]
[328532163,1717499438930,-505.94522343,0.00029589,6]
[328532164,1717499438940,-500.0,0.00029589,6]
[328532165,1717499438951,-500.0,0.00029589,6]
[328532166,1717499438960,-433.7100559,0.00029589,6]
[328532167,1717499438969,-500.0,0.00029589,6]
[328532168,1717499438978,-500.0,0.00029589,6]
[328532169,1717499438988,-500.0,0.00029589,6]
[328532170,1717499438998,-363.72541957,0.00029589,6]
[328532171,1717499439029,-168.14669434,0.00029589,6]
[328532172,1717499439039,-500.0,0.00029589,6]
[328532173,1717499439048,-500.0,0.00029589,6]
[328532174,1717499439057,-500.0,0.00029589,6]
[328532175,1717499439067,-500.0,0.00029589,6]
[328532176,1717499439076,-183.21376469,0.00029589,6]
[328532177,1717499439086,-500.0,0.00029589,6]
[328532178,1717499439095,-500.0,0.00029589,6]
[328532179,1717499439104,-617.58622161,0.00029589,6]
[328532180,1717499439114,-630.0,0.00029589,6]
[328532181,1717499439123,-500.0,0.00029589,6]
[328532182,1717499439132,-500.0,0.00029589,6]
[328532183,1717499439142,-262.81029148,0.00029589,6]
[328532184,1717499439151,-500.0,0.00029589,6]
[328532185,1717499439161,-500.0,0.00029589,6]
[328532186,1717499439171,-500.0,0.00029589,6]
[328532187,1717499439180,-500.0,0.00029589,6]
[328532188,1717499439190,-500.0,0.00029589,6]
[328532189,1717499439199,-500.0,0.00029589,6]
[328532190,1717499439208,-500.0,0.00029589,6]
[328532191,1717499439217,-500.0,0.00029589,6]
[328532192,1717499439226,-500.0,0.00029589,6]
[328532193,1717499439236,-500.0,0.00029589,6]
[328532194,1717499439245,-500.0,0.00029589,6]
[328532195,1717499439255,-500.0,0.00029589,6]
[328532196,1717499439265,-500.0,0.00029589,6]
[328532197,1717499439275,-500.0,0.00029589,6]
[328532198,1717499439285,-500.0,0.00029589,6]
[328532199,1717499439294,-500.0,0.00029589,6]
[328532200,1717499439304,-500.0,0.00029589,6]
[328532201,1717499439314,-500.0,0.00029589,6]
[328532202,1717499439323,-500.0,0.00029589,6]
[328532203,1717499439333,-500.0,0.00029589,6]
[328532204,1717499439342,-151.0,0.00029589,7]
[328532205,1717499439351,-500.0,0.00029589,6]
[328532206,1717499439361,-500.0,0.00029589,6]
[328532207,1717499439372,-500.0,0.00029589,6]
[328532208,1717499439381,-500.0,0.00029589,6]
[328532209,1717499439392,-500.0,0.00029589,6]
[328532210,1717499439401,-500.0,0.00029589,6]
[328532211,1717499439411,-500.0,0.00029589,6]
[328532212,1717499439420,-500.0,0.00029589,6]
[328532213,1717499439429,-340.03231965,0.00029589,6]
[328532214,1717499439439,-500.0,0.00029589,6]
[328532215,1717499439448,-151.0,0.00029589,7]
[328532216,1717499439457,-500.0,0.00029589,6]
[328532217,1717499439466,-507.74727988,0.00029589,6]
[328532218,1717499439476,-500.0,0.00029589,6]
[328532219,1717499439485,-500.0,0.00029589,6]
[328532220,1717499439494,-500.0,0.00029589,6]
[328532221,1717499439504,-500.0,0.00029589,6]
[328532222,1717499439513,-500.0,0.00029589,6]
[328532223,1717499439522,-500.0,0.00029589,6]
[328532224,1717499439531,-266.23845611,0.00029589,6]
[328532225,1717499439546,-233.76154389,0.00029589,6]
[328532226,1717499439555,-500.0,0.00029589,6]
[328532227,1717499439564,-500.0,0.00029589,6]
[328532228,1717499439574,-500.0,0.00029589,6]
[328532229,1717499439583,-500.0,0.00029589,6]
[328532230,1717499439593,-500.0,0.00029589,6]
[328532231,1717499439602,-500.0,0.00029589,6]
[328532232,1717499439611,-500.0,0.00029589,6]
[328532233,1717499439621,-500.0,0.00029589,6]
[328532234,1717499439631,-500.0,0.00029589,6]
[328532235,1717499439640,-500.0,0.00029589,6]
[328532236,1717499439649,-500.0,0.00029589,6]
[328532237,1717499439659,-500.0,0.00029589,6]
[328532238,1717499439668,-500.0,0.00029589,6]
[328532239,1717499439677,-500.0,0.00029589,6]
[328532240,1717499439686,-500.0,0.00029589,6]
[328532241,1717499439695,-500.0,0.00029589,6]
[328532242,1717499439704,-500.0,0.00029589,6]
[328532243,1717499439713,-500.0,0.00029589,6]
[328532244,1717499439723,-500.0,0.00029589,6]
[328532245,1717499439732,-218.72,0.00029589,6]
[328532246,1717499439742,-500.0,0.00029589,6]
[328532247,1717499439751,-216.21273135,0.00029589,6]
[328532248,1717499439761,-500.0,0.00029589,6]
[328532249,1717499439770,-500.0,0.00029589,6]
[328532250,1717499439780,-500.0,0.00029589,6]
[328532251,1717499439790,-151.0,0.00029589,7]
[328532252,1717499439799,-500.0,0.00029589,6]
[328532253,1717499439809,-500.0,0.00029589,6]
[328532254,1717499439818,-36.77439455,0.00029589,6]
[328532258,1717499441735,-463.22560545,0.00029589,6]
[328532259,1717499441745,-500.0,0.00029589,6]
[328532260,1717499441754,-500.0,0.00029589,6]
[328532261,1717499441763,-500.0,0.00029589,6]
[328532262,1717499441773,-500.0,0.00029589,6]
[328532263,1717499441782,-512.21754993,0.00029589,6]
[328532264,1717499441791,-150.0,0.00029589,6]
[328532265,1717499441800,-150.0,0.00029589,6]
[328532266,1717499441809,-500.0,0.00029589,6]
[328532267,1717499441818,-500.0,0.00029589,6]
[328532268,1717499441827,-500.0,0.00029589,6]
[328532269,1717499441836,-247.17351472,0.00029589,6]
[328532270,1717499442027,-252.82648528,0.00029589,6]
[328532271,1717499442036,-500.0,0.00029589,6]
[328532272,1717499442046,-500.0,0.00029589,6]
[328532273,1717499442055,-209.04896342,0.00029589,6]
[328532274,1717499442068,-290.95103658,0.00029589,6]
[328532275,1717499442077,-500.0,0.00029589,6]
[328532276,1717499442086,-500.0,0.00029589,6]
[328532277,1717499442096,-326.46688886,0.00029589,6]
[328532278,1717499442108,-173.53311114,0.00029589,6]
[328532279,1717499442118,-500.0,0.00029589,6]
[328532280,1717499442127,-512.46504334,0.00029589,6]
[328532281,1717499442137,-500.0,0.00029589,6]
[328532282,1717499442147,-199.79517314,0.00029589,6]
[328532283,1717499442157,-500.0,0.00029589,6]
[328532284,1717499442167,-500.0,0.00029589,6]
[328532285,1717499442177,-500.0,0.00029589,6]
[328532286,1717499442186,-151.0,0.00029589,7]
[328532287,1717499442196,-500.0,0.00029589,6]
[328532288,1717499442205,-536.58,0.00029589,6]
[328532289,1717499442214,-151.0,0.00029589,7]
[328532290,1717499442224,-500.0,0.00029589,6]
[328532291,1717499442233,-452.28014869,0.00029589,6]
[328532292,1717499442242,-500.0,0.00029589,6]
[328532293,1717499442251,-500.0,0.00029589,6]
[328532294,1717499442261,-500.0,0.00029589,6]
[328532295,1717499442270,-151.0,0.00029589,7]
[328532296,1717499442279,-500.0,0.00029589,6]
[328532297,1717499442288,-500.0,0.00029589,6]
[328532298,1717499442297,-500.0,0.00029589,6]
[328532299,1717499442307,-500.0,0.00029589,6]
[328532300,1717499442316,-207.79181975,0.00029589,6]
[328532301,1717499442338,-305.84033336,0.00029589,6]
[328532302,1717499442347,-151.0,0.00029589,7]
[328532303,1717499442356,-500.0,0.00029589,6]
[328532304,1717499442365,-500.0,0.00029589,6]
[328532305,1717499442375,-151.0,0.00029589,7]
[328532306,1717499442385,-387.58,0.00029589,6]
[328532307,1717499442394,-500.0,0.00029589,6]
[328532308,1717499442403,-500.0,0.00029589,6]
[328532309,1717499442414,-500.0,0.00029589,6]
[328532310,1717499442423,-500.0,0.00029589,6]
[328532311,1717499442432,-500.0,0.00029589,6]
[328532312,1717499442441,-500.0,0.00029589,6]
[328532313,1717499442451,-308.30370229,0.00029589,6]
[328532314,1717499442460,-513.44194494,0.00029589,6]
[328532315,1717499442469,-500.0,0.00029589,6]
[328532316,1717499442479,-500.0,0.00029589,6]
[328532317,1717499442489,-500.0,0.00029589,6]
[328532318,1717499442498,-151.0,0.00029589,7]
[328532319,1717499442507,-500.0,0.00029589,6]
[328532320,1717499442516,-500.0,0.00029589,6]
[328532321,1717499442526,-500.0,0.00029589,6]
[328532322,1717499442536,-500.0,0.00029589,6]
[328532323,1717499442546,-516.36594438,0.00029589,6]
[328532324,1717499442555,-500.0,0.00029589,6]
[328532325,1717499442565,-500.0,0.00029589,6]
[328532326,1717499442574,-151.0,0.00029589,7]
[328532327,1717499442583,-500.0,0.00029589,6]
[328532328,1717499442592,-500.0,0.00029589,6]
[328532329,1717499442602,-515.3,0.00029589,6]
[328532330,1717499442611,-151.0,0.00029589,7]
[328532331,1717499442620,-151.0,0.00029589,7]
[328532332,1717499442629,-500.0,0.00029589,6]
[328532333,1717499442639,-500.0,0.00029589,6]
[328532334,1717499442647,-551.25399329,0.00029589,6]
[328532335,1717499442658,-500.0,0.00029589,6]
[328532336,1717499442667,-512.10717391,0.00029589,6]
[328532337,1717499442676,-388.68469285,0.00029589,6]
[328532338,1717499442685,-500.0,0.00029589,6]
[328532339,1717499442694,-151.0,0.00029589,7]
[328532340,1717499442704,-151.0,0.00029589,7]
[328532341,1717499442713,-151.0,0.00029589,7]
[328532342,1717499442722,-329.41565288,0.00029589,6]
[328532343,1717499442731,-514.40541406,0.00029589,6]
[328532344,1717499442740,-500.0,0.00029589,6]
[328532345,1717499442750,-500.0,0.00029589,6]
[328532346,1717499442759,-151.0,0.00029589,7]
[328532347,1717499442768,-500.0,0.00029589,6]
[328532348,1717499442778,-500.0,0.00029589,6]
[328532350,1717499442787,-500.0,0.00029589,6]
[328532351,1717499442797,-500.0,0.00029589,6]
[328532352,1717499442806,-500.0,0.00029589,6]
[328532353,1717499442816,-500.0,0.00029589,6]
[328532354,1717499442825,-500.0,0.00029589,6]
[328532355,1717499442834,-554.2,0.00029589,6]
[328532356,1717499442843,-500.0,0.00029589,6]
[328532357,1717499442852,-500.0,0.00029589,6]
[328532358,1717499442862,-500.0,0.00029589,6]
[328532359,1717499442871,-500.0,0.00029589,6]
[328532360,1717499442881,-491.44575449,0.00029589,6]
[328532361,1717499442890,-500.0,0.00029589,6]
[328532362,1717499442899,-500.0,0.00029589,6]
[328532363,1717499442913,-500.0,0.00029589,6]
[328532364,1717499442922,-500.0,0.00029589,6]
[328532365,1717499442931,-500.0,0.00029589,6]
[328532366,1717499442940,-500.0,0.00029589,6]
[328532367,1717499442950,-500.0,0.00029589,6]
[328532368,1717499442958,-500.0,0.00029589,6]
[328532369,1717499442967,-500.0,0.00029589,6]
[328532370,1717499442976,-500.0,0.00029589,6]
[328532371,1717499442984,-500.0,0.00029589,6]
[328532372,1717499442996,-500.0,0.00029589,6]
[328532373,1717499443005,-512.14017628,0.00029589,6]
[328532374,1717499443014,-500.0,0.00029589,6]
[328532375,1717499443023,-500.0,0.00029589,6]
[328532376,1717499443032,-500.0,0.00029589,6]
[328532377,1717499443041,-518.7925886,0.00029589,6]
[328532378,1717499443050,-553.75450164,0.00029589,6]
[328532379,1717499443059,-500.0,0.00029589,6]
[328532380,1717499443069,-500.0,0.00029589,6]
[328532381,1717499443080,-151.0,0.00029589,7]
[328532382,1717499443091,-500.0,0.00029589,6]
[328532383,1717499443101,-151.0,0.00029589,7]
[328532384,1717499443110,-500.0,0.00029589,6]
[328532385,1717499443119,-151.0,0.00029589,7]
[328532386,1717499443129,-500.0,0.00029589,6]
[328532387,1717499443139,-529.62138227,0.00029589,6]
[328532388,1717499443148,-500.0,0.00029589,6]
[328532389,1717499443160,-500.0,0.00029589,6]
[328532390,1717499443169,-500.0,0.00029589,6]
[328532391,1717499443179,-511.00385837,0.00029589,6]
[328532392,1717499443188,-526.04885671,0.00029589,6]
[328532393,1717499443198,-500.0,0.00029589,6]
[328532394,1717499443207,-500.0,0.00029589,6]
[328532395,1717499443216,-500.0,0.00029589,6]
[328532396,1717499443225,-500.0,0.00029589,6]
[328532397,1717499443234,-500.0,0.00029589,6]
[328532398,1717499443243,-640.78043934,0.00029589,6]
[328532399,1717499443253,-500.0,0.00029589,6]
[328532400,1717499443262,-500.0,0.00029589,6]
[328532401,1717499443271,-500.0,0.00029589,6]
[328532402,1717499443280,-500.0,0.00029589,6]
[328532403,1717499443289,-276.47655137,0.00029589,6]
[328532404,1717499443299,-500.0,0.00029589,6]
[328532405,1717499443308,-500.0,0.00029589,6]
[328532406,1717499443317,-500.0,0.00029589,6]
[328532407,1717499443326,-500.0,0.00029589,6]
[328532408,1717499443335,-500.0,0.00029589,6]
[328532409,1717499443344,-500.0,0.00029589,6]
[328532410,1717499443354,-500.0,0.00029589,6]
[328532411,1717499443363,-611.58,0.00029589,6]
[328532412,1717499443373,-500.0,0.00029589,6]
[328532413,1717499443383,-500.0,0.00029589,6]
[328532414,1717499443392,-500.0,0.00029589,6]
[328532415,1717499443401,-500.0,0.00029589,6]
[328532416,1717499443412,-500.0,0.00029589,6]
[328532417,1717499443421,-500.0,0.00029589,6]
[328532418,1717499443431,-500.0,0.00029589,6]
[328532419,1717499443440,-500.0,0.00029589,6]
[328532420,1717499443450,-500.0,0.00029589,6]
[328532421,1717499443459,-500.0,0.00029589,6]
[328532422,1717499443468,-500.0,0.00029589,6]
[328532423,1717499443478,-500.0,0.00029589,6]
[328532424,1717499443487,-500.0,0.00029589,6]
[328532425,1717499443496,-521.96713249,0.00029589,6]
[328532426,1717499443506,-500.0,0.00029589,6]
[328532427,1717499443516,-500.0,0.00029589,6]
[328532428,1717499443525,-500.0,0.00029589,6]
[328532429,1717499443535,-500.0,0.00029589,6]
[328532430,1717499443543,-500.0,0.00029589,6]
[328532431,1717499443553,-500.0,0.00029589,6]
[328532432,1717499443562,-500.0,0.00029589,6]
[328532433,1717499443571,-500.0,0.00029589,6]
[328532434,1717499443582,-500.0,0.00029589,6]
[328532435,1717499443592,-500.0,0.00029589,6]
[328532436,1717499443601,-500.0,0.00029589,6]
[328532437,1717499443611,-500.0,0.00029589,6]
[328532438,1717499443620,-500.0,0.00029589,6]
[328532439,1717499443629,-500.0,0.00029589,6]
[328532440,1717499443638,-500.0,0.00029589,6]
[328532441,1717499443649,-500.0,0.00029589,6]
[328532442,1717499443659,-500.0,0.00029589,6]
[328532443,1717499443669,-500.0,0.00029589,6]
[328532444,1717499443679,-500.0,0.00029589,6]
[328532445,1717499443688,-500.0,0.00029589,6]
[328532446,1717499443698,-511.22748906,0.00029589,6]
[328532447,1717499443708,-500.0,0.00029589,6]
[328532448,1717499443717,-500.0,0.00029589,6]
[328532449,1717499443727,-500.0,0.00029589,6]
[328532450,1717499443736,-500.0,0.00029589,6]
[328532451,1717499443747,-171.1074898,0.00029589,6]
[328532452,1717499443756,-500.0,0.00029589,6]
[328532453,1717499443765,-509.75184681,0.00029589,6]
[328532454,1717499443774,-500.0,0.00029589,6]
[328532455,1717499443783,-500.0,0.00029589,6]
[328532456,1717499443794,-500.0,0.00029589,6]
[328532457,1717499443804,-500.0,0.00029589,6]
[328532458,1717499443813,-500.0,0.00029589,6]
[328532459,1717499443822,-500.0,0.00029589,6]
[328532460,1717499443831,-500.0,0.00029589,6]
[328532461,1717499443840,-500.0,0.00029589,6]
[328532462,1717499443850,-500.0,0.00029589,6]
[328532463,1717499443859,-500.0,0.00029589,6]
[328532464,1717499443868,-500.0,0.00029589,6]
[328532465,1717499443877,-613.73,0.00029589,6]
[328532466,1717499443886,-500.0,0.00029589,6]
[328532467,1717499443895,-500.0,0.00029589,6]
[328532468,1717499443904,-151.0,0.00029589,7]
[328532469,1717499443918,-151.0,0.00029589,7]
[328532470,1717499443927,-500.0,0.00029589,6]
[328532471,1717499443937,-500.0,0.00029589,6]
[328532472,1717499443946,-500.0,0.00029589,6]
[328532473,1717499443956,-500.0,0.00029589,6]
[328532474,1717499443965,-648.06897951,0.00029589,6]
[328532475,1717499443974,-500.0,0.00029589,6]
[328532476,1717499443983,-500.0,0.00029589,6]
[328532477,1717499443996,-500.0,0.00029589,6]
[328532478,1717499444006,-500.0,0.00029589,6]
[328532479,1717499444016,-453.42136909,0.00029589,6]
[328532480,1717499444026,-500.0,0.00029589,6]
[328532481,1717499444036,-591.91,0.00029589,6]
[328532482,1717499444045,-500.0,0.00029589,6]
[328532483,1717499444054,-500.0,0.00029589,6]
[328532484,1717499444064,-500.0,0.00029589,6]
[328532485,1717499444074,-500.0,0.00029589,6]
[328532486,1717499444084,-500.0,0.00029589,6]
[328532487,1717499444094,-500.0,0.00029589,6]
[328532488,1717499444103,-500.0,0.00029589,6]
[328532489,1717499444113,-500.0,0.00029589,6]
[328532490,1717499444122,-500.0,0.00029589,6]
[328532491,1717499444132,-500.0,0.00029589,6]
[328532492,1717499444141,-532.26,0.00029589,6]
[328532493,1717499444150,-500.0,0.00029589,6]
[328532494,1717499444161,-500.0,0.00029589,6]
[328532495,1717499444170,-500.0,0.00029589,6]